bitfinex/quotes_BTCUSD_20260101
["timestamp","ask_amount","ask_price","bid_price","bid_amount"]
[1767290202688,0.01136,88344.0,88335.0,0.45196759]
[1767290202888,0.01136,88344.0,88336.0,0.01132041]
[1767290203212,0.01136,88344.0,88335.0,0.45196759]
[1767290203574,0.01081161,88343.0,88336.0,0.01132041]
[1767290204761,0.01081161,88343.0,88335.0,0.01167216]
[1767290205635,0.01136,88342.0,88339.0,0.30259449]
[1767290206361,0.01136,88342.0,88339.0,0.31391451]
[1767290206568,0.01136,88342.0,88339.0,0.30259449]
[1767290206768,0.01136,88342.0,88339.0,0.31391451]
[1767290207231,0.01136,88342.0,88339.0,0.30259449]
[1767290207590,0.01136,88343.0,88339.0,0.31391451]
[1767290207792,0.01136,88343.0,88339.0,0.30259449]
[1767290207977,0.01136,88343.0,88339.0,0.31391451]
[1767290208186,0.01136,88343.0,88339.0,0.30259449]
[1767290208853,0.01136,88343.0,88337.0,0.01132028]
[1767290209417,0.01136,88343.0,88336.0,0.01132041]
[1767290210015,0.01136,88346.0,88337.0,0.31391477]
[1767290210572,0.000549,88337.0,88335.0,0.00035162]
[1767290211096,0.01136,88346.0,88335.0,0.00035162]
[1767290211414,0.33204574,88346.0,88335.0,0.00035162]
[1767290211615,0.33204574,88346.0,88335.0,6.2e-07]
[1767290212094,0.33204574,88346.0,88335.0,0.01132116]
[1767290212651,0.33204574,88346.0,88336.0,0.01132041]
[1767290212822,0.33204574,88346.0,88335.0,0.01132116]
[1767290213750,0.33204574,88346.0,88335.0,6.2e-07]
[1767290213993,0.33204574,88346.0,88335.0,0.01132116]
[1767290214374,0.33204574,88346.0,88335.0,6.2e-07]
[1767290214734,0.33204574,88346.0,88335.0,0.01132116]
[1767290215131,0.33204574,88346.0,88336.0,0.01132041]
[1767290215638,0.33204574,88346.0,88337.0,0.01132028]
[1767290215886,0.01136,88346.0,88337.0,0.01132028]
[1767290216255,0.01136,88346.0,88336.0,0.01132041]
[1767290216833,0.01136,88346.0,88335.0,0.01132116]
[1767290217380,0.01136,88346.0,88337.0,0.01132028]
[1767290217609,0.01136,88346.0,88335.0,6.2e-07]
[1767290217805,0.01136,88346.0,88336.0,0.01132041]
[1767290218031,0.01136,88346.0,88335.0,0.01132116]
[1767290218592,0.32392068,88357.0,88346.0,0.000351]
[1767290218790,0.03583816,88356.0,88347.0,0.44059407]
[1767290218990,0.03583816,88355.0,88347.0,0.44059407]
[1767290219282,0.02447816,88354.0,88347.0,0.44059407]
[1767290219717,0.02447816,88354.0,88342.0,0.32797748]
[1767290219914,0.02447816,88354.0,88344.0,0.44059407]
[1767290220760,0.02447816,88354.0,88344.0,0.50851036]
[1767290220982,0.02447816,88354.0,88346.0,0.01131913]
[1767290221349,0.01136,88353.0,88349.0,0.31665784]
[1767290221998,0.011009,88353.0,88349.0,0.31665784]
[1767290222170,0.011009,88353.0,88349.0,0.32797658]
[1767290222588,0.01136,88354.0,88349.0,0.32797658]
[1767290223614,0.01136,88354.0,88346.0,0.01131913]
[1767290223848,0.01136,88354.0,88347.0,0.011319]
[1767290224031,0.01136,88354.0,88348.0,0.01131887]
[1767290224203,0.01136,88354.0,88350.0,0.31665784]
[1767290225276,0.01136,88354.0,88350.0,0.32797645]
[1767290225601,0.01136,88354.0,88346.0,0.01131913]
[1767290225843,0.01136,88354.0,88348.0,0.01131887]
[1767290226400,0.01136,88354.0,88347.0,0.011319]
[1767290227165,0.01136,88354.0,88347.0,0.06791399]
[1767290227549,0.01136,88354.0,88348.0,0.01131887]
[1767290228419,0.01136,88354.0,88349.0,0.01131874]
[1767290229166,0.01136,88354.0,88350.0,0.01131861]
[1767290229747,0.01136,88354.0,88349.0,0.01131874]
[1767290230261,0.01136,88354.0,88350.0,0.01131861]
[1767290230460,0.01136,88354.0,88346.0,0.01131913]
[1767290230623,0.01136,88354.0,88347.0,0.011319]
[1767290230818,0.01136,88354.0,88346.0,0.01131913]
[1767290231023,0.01136,88354.0,88345.0,0.01131925]
[1767290231224,0.01136,88354.0,88346.0,0.01131913]
[1767290231425,0.01136,88354.0,88345.0,0.01131925]
[1767290232257,0.01136,88354.0,88346.0,0.01131913]
[1767290232645,0.01136,88354.0,88347.0,0.011319]
[1767290233897,0.01136,88354.0,88346.0,0.01131913]
[1767290234055,0.01136,88354.0,88347.0,0.011319]
[1767290234822,0.01136,88354.0,88346.0,0.01131913]
[1767290235211,0.01136,88354.0,88347.0,0.011319]
[1767290236746,0.01136,88354.0,88346.0,0.01131913]
[1767290237172,0.01136,88354.0,88345.0,0.01131925]
[1767290237396,0.01136,88354.0,88344.0,0.45191345]
[1767290237625,0.01136,88354.0,88344.0,0.44059407]
[1767290239119,0.01136,88354.0,88345.0,0.01131925]
[1767290239491,0.01136,88354.0,88346.0,0.01131913]
[1767290239732,0.01136,88354.0,88345.0,0.01131925]
[1767290240077,0.01136,88354.0,88346.0,0.01131913]
[1767290240253,0.01136,88354.0,88344.0,0.45191345]
[1767290240557,0.01136,88354.0,88344.0,0.44059407]
[1767290241319,0.01136,88354.0,88341.0,0.01131977]
[1767290241516,0.01136,88354.0,88342.0,0.01131964]
[1767290241962,0.01136,88354.0,88341.0,0.32797761]
[1767290242566,0.01136,88354.0,88342.0,0.06791786]
[1767290242786,0.01136,88354.0,88344.0,0.01131938]
[1767290243200,0.01136,88354.0,88345.0,0.01131925]
[1767290243781,0.01136,88354.0,88344.0,0.45191345]
[1767290244433,0.01136,88354.0,88344.0,0.44059407]
[1767290244833,0.000549,88344.0,88340.0,0.44059407]
[1767290244975,0.30701974,88353.0,88340.0,0.0113199]
[1767290245203,0.30701974,88353.0,88335.0,0.01132116]
[1767290245204,0.30701974,88353.0,88335.0,6.2e-07]
[1767290245411,0.30701974,88347.0,88335.0,6.2e-07]
[1767290245710,0.31837974,88346.0,88335.0,6.2e-07]
[1767290245917,0.31837974,88346.0,88336.0,0.44059407]
[1767290246529,0.01136,88346.0,88337.0,0.01132028]
[1767290246738,0.01136,88346.0,88338.0,0.01132015]
[1767290246947,0.01136,88346.0,88337.0,0.01132028]
[1767290247186,0.01136,88346.0,88338.0,0.01132015]
[1767290247562,0.01136,88346.0,88337.0,0.01132028]
[1767290248189,0.01136,88346.0,88336.0,0.45191448]
[1767290248533,0.01136,88346.0,88336.0,0.44059407]
[1767290248739,0.01136,88346.0,88337.0,0.01132028]
[1767290249151,0.01136,88346.0,88336.0,0.45191448]
[1767290249553,0.01136,88346.0,88337.0,0.01132028]
[1767290250095,0.01136,88346.0,88338.0,0.01132015]
[1767290250310,0.01136,88346.0,88337.0,0.01132028]
[1767290250525,0.01136,88346.0,88338.0,0.01132015]
[1767290250722,0.01136,88346.0,88339.0,0.01132002]
[1767290250927,0.01136,88346.0,88340.0,0.0113199]
[1767290251333,0.00963943,88351.0,88343.0,0.01131951]
[1767290251545,0.00963943,88351.0,88344.0,0.01131938]
[1767290252158,0.01136,88353.0,88350.0,0.44059407]
[1767290252342,0.000549,88350.0,88346.0,0.33546554]
[1767290252695,0.01136,88353.0,88341.0,0.33546618]
[1767290252903,0.00055,88346.0,88342.0,0.33546605]
[1767290253260,0.01136,88353.0,88342.0,0.32414641]
[1767290254061,0.01136,88353.0,88340.0,0.44059407]
[1767290254062,0.000549,88342.0,88340.0,0.44059407]
[1767290254258,0.01136,88353.0,88340.0,0.0113199]
[1767290254471,0.01136,88353.0,88339.0,0.32414641]
[1767290254869,0.31837974,88353.0,88340.0,0.44059407]
[1767290255228,0.000549,88340.0,88337.0,0.01136]
[1767290255440,0.30701974,88345.0,88337.0,0.01136]
[1767290255592,0.00055,88337.0,88335.0,0.01136062]
[1767290256012,0.30701974,88345.0,88336.0,0.01132041]
[1767290256213,0.30701974,88345.0,88335.0,0.01136062]
[1767290257557,0.31837974,88345.0,88335.0,6.2e-07]
[1767290260433,0.31837974,88345.0,88335.0,0.00023572]
[1767290263595,0.31837974,88345.0,88335.0,7.2e-07]
[1767290265674,0.31837974,88345.0,88328.0,0.01136]
[1767290265876,0.33005064,88345.0,88330.0,0.44062639]
[1767290266116,0.30701974,88343.0,88330.0,0.44031239]
[1767290267225,0.30701974,88343.0,88328.0,0.01136]
[1767290267509,0.30701974,88343.0,88330.0,0.44062639]
[1767290270633,0.01171165,88345.0,88326.0,0.0001488]
[1767290270634,0.30701974,88341.0,88326.0,0.0001488]
[1767290270838,0.00055,88330.0,88326.0,0.0001488]
[1767290271034,0.30701974,88334.0,88326.0,0.0001488]
[1767290271577,0.01136,88337.0,88326.0,0.01147049]
[1767290271781,0.01136,88337.0,88327.0,0.01132156]
[1767290272000,0.01136,88337.0,88328.0,0.01132143]
[1767290272354,0.01136,88337.0,88327.0,0.44062639]
[1767290273587,0.01136,88337.0,88326.0,0.0001488]
[1767290273787,0.01136,88337.0,88327.0,0.44062639]
[1767290275226,0.01136,88337.0,88326.0,0.30965409]
[1767290275439,0.01136,88337.0,88326.0,0.0001488]
[1767290275639,0.01136,88337.0,88327.0,0.44062639]
[1767290276480,0.31927068,88337.0,88327.0,0.44062639]
[1767290276708,0.31927068,88337.0,88326.0,0.0001488]
[1767290276911,0.31927068,88337.0,88327.0,0.44062639]
[1767290278441,0.31927068,88337.0,88327.0,0.45194795]
[1767290280195,0.31927068,88337.0,88327.0,0.44062639]
[1767290280594,0.01136,88337.0,88328.0,0.01132143]
[1767290280814,0.010811,88337.0,88328.0,0.32082672]
[1767290280962,0.010811,88337.0,88329.0,0.01132131]
[1767290281647,0.010811,88337.0,88330.0,0.01132118]
[1767290281806,0.30791068,88343.0,88330.0,0.01132118]
[1767290281807,0.01136,88339.0,88333.0,0.01132079]
[1767290282372,0.01136,88339.0,88332.0,0.01132092]
[1767290282785,0.01136,88339.0,88333.0,0.06792477]
[1767290283002,0.01136,88339.0,88333.0,0.01132079]
[1767290283415,0.01136,88339.0,88332.0,0.01132092]
[1767290284558,0.01136,88339.0,88333.0,0.01132079]
[1767290284770,0.01136,88339.0,88334.0,0.01132066]
[1767290284997,0.01136,88339.0,88333.0,0.01132079]
[1767290285410,0.01136,88339.0,88331.0,0.32082634]
[1767290286099,0.01136,88339.0,88332.0,0.01132092]
[1767290287432,0.01136,88339.0,88334.0,0.01132066]
[1767290287667,0.01136,88339.0,88333.0,0.01132079]
[1767290287668,0.01136,88339.0,88332.0,0.01132092]
[1767290288492,0.01136,88339.0,88331.0,0.32082634]
[1767290288720,0.01136,88339.0,88332.0,0.01132092]
[1767290289337,0.01136,88339.0,88333.0,0.01132079]
[1767290289739,0.01136,88339.0,88332.0,0.01132092]
[1767290290076,0.01136,88339.0,88333.0,0.01132079]
[1767290290318,0.01136,88339.0,88332.0,0.01132092]
[1767290290718,0.01136,88339.0,88333.0,0.01132079]
[1767290290892,0.01136,88339.0,88334.0,0.01132066]
[1767290292296,0.01136,88341.0,88334.0,0.01132066]
[1767290292511,0.01136,88341.0,88333.0,0.06792464]
[1767290292512,0.01136,88341.0,88333.0,0.01132079]
[1767290292993,0.01136,88341.0,88334.0,0.01132066]
[1767290293563,0.00035165,88345.0,88339.0,0.01132002]
[1767290293564,0.01136,88343.0,88339.0,0.01132002]
[1767290293764,0.01171165,88345.0,88337.0,0.01132028]
[1767290293945,0.01171165,88345.0,88338.0,0.01132015]
[1767290294910,0.01171165,88345.0,88336.0,0.06792195]
[1767290295108,0.01171165,88345.0,88335.0,0.45194693]
[1767290295518,0.02448101,88344.0,88335.0,0.45194693]
[1767290295774,0.02448101,88344.0,88336.0,0.01132041]
[1767290295972,0.01171165,88345.0,88336.0,0.01132041]
[1767290296316,0.02448175,88344.0,88336.0,0.01132041]
[1767290296786,0.02448175,88344.0,88338.0,0.01132015]
[1767290296986,0.02448175,88344.0,88337.0,0.01132028]
[1767290297595,0.02448175,88344.0,88336.0,0.30950529]
[1767290297954,0.02448175,88344.0,88333.0,0.01132079]
[1767290298174,0.02448175,88344.0,88332.0,0.02268092]
[1767290298381,0.02448175,88344.0,88333.0,0.01132079]
[1767290298557,0.02448175,88344.0,88332.0,0.01136]
[1767290298752,0.02448175,88344.0,88334.0,0.44062639]
[1767290298958,0.01171165,88345.0,88334.0,0.44062639]
[1767290302483,0.00055,88334.0,88330.0,0.01136]
[1767290302932,0.30791068,88339.0,88330.0,0.01136]
[1767290305006,0.30791068,88339.0,88329.0,0.44062639]
[1767290307305,0.30791068,88339.0,88326.0,0.01147049]
[1767290307508,0.30791068,88339.0,88329.0,0.44062639]
[1767290309769,0.00055,88329.0,88326.0,0.0001488]
[1767290310055,0.31974976,88335.0,88326.0,0.0001488]
[1767290312657,0.31974976,88335.0,88326.0,0.01147049]
[1767290313017,0.01136,88337.0,88326.0,0.01147049]
[1767290313222,0.01136,88337.0,88327.0,0.44062639]
[1767290315320,0.01136,88337.0,88327.0,0.45194795]
[1767290315738,0.01136,88337.0,88328.0,0.01132143]
[1767290315961,0.01136,88337.0,88327.0,0.45194795]
[1767290316518,0.01136,88337.0,88328.0,0.01132143]
[1767290317224,0.01136,88337.0,88327.0,0.45194795]
[1767290317627,0.01136,88337.0,88328.0,0.01132143]
[1767290317828,0.01136,88337.0,88327.0,0.44062639]
[1767290318029,0.01136,88337.0,88327.0,0.45194795]
[1767290318230,0.01136,88337.0,88328.0,0.01132143]
[1767290318650,0.01136,88337.0,88327.0,0.45194795]
[1767290319316,0.01136,88337.0,88327.0,0.44062639]
[1767290319978,0.01136,88337.0,88327.0,0.45194795]
[1767290320199,0.01136,88337.0,88327.0,0.44062639]
[1767290320408,0.01136,88337.0,88327.0,0.45194795]
[1767290320612,0.01136,88337.0,88328.0,0.01132143]
[1767290321247,0.01136,88337.0,88329.0,0.01132131]
[1767290321456,0.01136,88337.0,88328.0,0.01132143]
[1767290321833,0.01136,88337.0,88329.0,0.01132131]
[1767290322873,0.01136,88337.0,88330.0,0.01132118]
[1767290323055,0.01131722,88337.0,88330.0,0.01132118]
[1767290324877,0.01076822,88337.0,88330.0,0.01132118]
[1767290325280,0.01076822,88337.0,88331.0,0.01132105]
[1767290325984,0.01076822,88337.0,88330.0,0.01132118]
[1767290326737,0.01076822,88337.0,88331.0,0.01132105]
[1767290326921,0.01076822,88337.0,88332.0,0.01132092]
[1767290327134,0.01076822,88337.0,88331.0,0.01132105]
[1767290328303,0.01076822,88337.0,88332.0,0.01132092]
[1767290328653,0.01136,88342.0,88327.0,0.45198059]
[1767290328801,0.01136,88342.0,88329.0,0.01132131]
[1767290329735,0.33110976,88342.0,88329.0,0.01132131]
[1767290329936,0.33110976,88342.0,88330.0,0.01132118]
[1767290330349,0.33110976,88342.0,88331.0,0.01132105]
[1767290331368,0.33110976,88342.0,88330.0,0.01132118]
[1767290331568,0.33110976,88342.0,88329.0,0.01132131]
[1767290332144,0.33110976,88342.0,88326.0,0.3648799]
[1767290332347,0.33110976,88342.0,88327.0,0.01132156]
[1767290332917,0.33110976,88342.0,88326.0,0.30827178]
[1767290333132,0.33110976,88342.0,88326.0,0.0001488]
[1767290333329,0.33110976,88342.0,88326.0,0.01147049]
[1767290333749,0.33110976,88342.0,88327.0,0.01132156]
[1767290334313,0.01136,88342.0,88335.0,0.01132054]
[1767290334524,0.01136,88342.0,88333.0,0.31027177]
[1767290334753,0.01136,88342.0,88336.0,0.01132041]
[1767290334907,0.01136,88342.0,88337.0,0.01132028]
[1767290335108,0.01136,88342.0,88338.0,0.31027177]
[1767290338005,0.01136,88342.0,88335.0,0.01132054]
[1767290339160,0.01136,88342.0,88334.0,0.01132066]
[1767290339487,0.000549,88334.0,88326.0,0.32174226]
[1767290339667,0.000549,88334.0,88329.0,0.01132131]
[1767290339887,0.32103356,88342.0,88329.0,0.01132131]
[1767290340468,0.32103356,88342.0,88329.0,0.06792784]
[1767290340687,0.32103356,88342.0,88331.0,0.01132105]
[1767290340898,0.32103356,88342.0,88330.0,0.01132118]
[1767290341456,0.32103356,88342.0,88331.0,0.01132105]
[1767290341864,0.01131751,88342.0,88332.0,0.01132092]
[1767290342018,0.01131751,88342.0,88331.0,0.01132105]
[1767290342216,0.01131751,88342.0,88332.0,0.01132092]
[1767290342651,0.01131751,88342.0,88333.0,0.01132079]
[1767290342965,0.01131751,88342.0,88332.0,0.01132092]
[1767290343347,0.01131751,88342.0,88332.0,0.06792526]
[1767290343548,0.01131751,88342.0,88333.0,0.01132079]
[1767290344344,0.01131751,88342.0,88332.0,0.01132092]
[1767290345247,0.01131751,88342.0,88333.0,0.01132079]
[1767290345446,0.01131751,88342.0,88334.0,0.01132066]
[1767290345851,0.01131751,88342.0,88333.0,0.01132079]
[1767290347341,0.01131751,88342.0,88334.0,0.01132066]
[1767290348168,0.01131751,88342.0,88335.0,0.01132054]
[1767290348572,0.01127502,88342.0,88333.0,0.01132079]
[1767290348785,0.01127502,88342.0,88334.0,0.01132066]
[1767290349181,0.01127502,88342.0,88333.0,0.01132079]
[1767290349642,0.01127502,88342.0,88335.0,0.01132054]
[1767290350678,0.01127502,88342.0,88333.0,0.37819652]
[1767290350840,0.01127502,88342.0,88335.0,0.01132054]
[1767290351042,0.00035165,88345.0,88337.0,0.32159205]
[1767290351209,0.00035165,88345.0,88339.0,0.01132002]
[1767290352057,0.00035165,88345.0,88340.0,0.0113199]
[1767290353809,0.00035165,88345.0,88341.0,0.01131977]
[1767290354209,0.00035165,88345.0,88340.0,0.0113199]
[1767290355118,0.0003093,88345.0,88341.0,0.01131977]
[1767290355286,0.0003093,88345.0,88340.0,0.0113199]
[1767290355818,0.00026681,88345.0,88341.0,0.01131977]
[1767290356553,0.00026681,88345.0,88340.0,0.0113199]
[1767290356844,0.00026681,88345.0,88341.0,0.01131977]
[1767290356991,0.00026681,88345.0,88340.0,0.0113199]
[1767290357662,0.00026681,88345.0,88341.0,0.01131977]
[1767290358010,0.00026681,88345.0,88340.0,0.0113199]
[1767290358911,0.00026681,88345.0,88341.0,0.01131977]
[1767290359255,0.00026681,88345.0,88340.0,0.0113199]
[1767290359394,0.00026681,88345.0,88341.0,0.01131977]
[1767290360211,0.01136,88348.0,88343.0,0.31027177]
[1767290360455,0.01140376,88348.0,88342.0,0.01131964]
[1767290361238,0.01136225,88348.0,88342.0,0.01131964]
[1767290361437,0.01136225,88348.0,88344.0,0.01131938]
[1767290361642,0.01136225,88348.0,88345.0,0.01131925]
[1767290362063,0.01131841,88348.0,88345.0,0.01131925]
[1767290362240,0.00210365,88348.0,88346.0,0.31027177]
[1767290362613,0.0001488,88357.0,88348.0,0.01131887]
[1767290362815,0.00010768,88357.0,88348.0,0.00020366]
[1767290363427,0.00010768,88357.0,88348.0,0.01152253]
[1767290363601,0.00010768,88357.0,88348.0,0.00020366]
[1767290363838,0.00010768,88357.0,88348.0,0.01152253]
[1767290364554,0.00010768,88357.0,88348.0,0.00020366]
[1767290364758,0.00010768,88357.0,88348.0,0.01152253]
[1767290364959,0.00010768,88357.0,88348.0,0.00020366]
[1767290365652,0.00010768,88357.0,88348.0,0.01152253]
[1767290365798,0.00010768,88357.0,88351.0,0.30437129]
[1767290366001,0.00010768,88357.0,88351.0,0.31568978]
[1767290366203,0.00010768,88357.0,88352.0,0.31568965]
[1767290366403,0.00010768,88357.0,88352.0,0.30268629]
[1767290366608,0.00010768,88357.0,88350.0,0.01131861]
[1767290368415,0.00010768,88357.0,88349.0,0.01131874]
[1767290369418,0.00010768,88357.0,88350.0,0.01131861]
[1767290369844,0.00010768,88357.0,88349.0,0.01131874]
[1767290370636,0.00010768,88357.0,88348.0,0.00020366]
[1767290370992,0.00010768,88357.0,88348.0,0.01152253]
[1767290371176,0.00010768,88357.0,88349.0,0.01131874]
[1767290372752,0.00010768,88357.0,88350.0,0.01131861]
[1767290374573,0.00010768,88357.0,88351.0,0.01131849]
[1767290374780,0.00010768,88357.0,88349.0,0.01131874]
[1767290375156,0.00010768,88357.0,88348.0,0.01152253]
[1767290375349,0.00010768,88357.0,88348.0,0.00020366]
[1767290375695,0.00010768,88357.0,88348.0,6.6e-07]
[1767290377052,0.00010768,88357.0,88348.0,0.01131953]
[1767290377420,0.00010768,88357.0,88349.0,0.01131874]
[1767290378376,0.00010768,88357.0,88350.0,0.01131861]
[1767290379289,0.00010768,88357.0,88351.0,0.01131849]
[1767290379492,6.8e-07,88357.0,88353.0,0.01131823]
[1767290379675,6.8e-07,88357.0,88352.0,0.01131836]
[1767290380083,6.8e-07,88357.0,88353.0,0.01131823]
[1767290380498,6.8e-07,88357.0,88354.0,0.0113181]
[1767290381158,6.8e-07,88357.0,88353.0,0.01131823]
[1767290381368,6.8e-07,88357.0,88354.0,0.0113181]
[1767290382295,0.30999102,88357.0,88350.0,0.01131861]
[1767290382817,6.8e-07,88357.0,88350.0,0.01131861]
[1767290382990,6.8e-07,88357.0,88352.0,0.01131836]
[1767290383735,6.8e-07,88357.0,88354.0,0.37227992]
[1767290383961,6.8e-07,88357.0,88356.0,0.05658925]
[1767290385476,6.8e-07,88357.0,88354.0,0.37227992]
[1767290386706,6.8e-07,88357.0,88354.0,0.31568939]
[1767290387689,6.8e-07,88357.0,88354.0,0.37227991]
[1767290390866,6.8e-07,88357.0,88354.0,0.3722799]
[1767290392450,6.8e-07,88357.0,88355.0,0.05658943]
[1767290392655,0.0001488,88366.0,88357.0,0.01131772]
[1767290392656,0.00010616,88366.0,88357.0,0.01131772]
[1767290392857,0.00010616,88366.0,88356.0,0.45170164]
[1767290393060,0.00010616,88366.0,88357.0,0.01131772]
[1767290393259,0.00010616,88366.0,88356.0,0.45170164]
[1767290393515,0.00010616,88366.0,88357.0,0.01131772]
[1767290395450,0.00010616,88366.0,88358.0,0.01131759]
[1767290396399,0.00010616,88366.0,88359.0,0.01131746]
[1767290396622,0.00010616,88366.0,88361.0,0.01131721]
[1767290397798,0.00010616,88366.0,88360.0,0.01131733]
[1767290398129,0.00010616,88366.0,88361.0,0.01131721]
[1767290398321,0.00010616,88366.0,88360.0,0.01131733]
[1767290398936,0.00010616,88366.0,88362.0,0.01131708]
[1767290399153,0.00010616,88366.0,88363.0,0.01131695]
[1767290399330,0.00010616,88366.0,88362.0,0.01131708]
[1767290399532,0.00010616,88366.0,88361.0,0.01131721]
[1767290400425,0.00010616,88366.0,88361.0,0.31151935]
[1767290400632,1.116e-05,88366.0,88363.0,0.01131695]
[1767290400831,1.116e-05,88366.0,88364.0,0.35678575]
[1767290401172,1.116e-05,88368.0,88367.0,0.35678434]
[1767290401574,0.024454,88381.0,88373.0,0.31151781]
[1767290401805,0.0001488,88384.0,88379.0,0.0113149]
[1767290402051,0.0001488,88384.0,88378.0,0.01131503]
[1767290402264,0.0001488,88384.0,88381.0,0.30020214]
[1767290402470,0.0001488,88393.0,88383.0,0.01131439]
[1767290402673,0.0001488,88393.0,88384.0,0.000148]
[1767290402876,0.0001488,88393.0,88380.0,0.44038379]
[1767290402877,0.000401,88383.0,88380.0,0.44038379]
[1767290403189,0.0001488,88393.0,88386.0,0.011314]
[1767290403390,0.0001488,88393.0,88390.0,0.31151563]
[1767290403668,0.0001488,88393.0,88390.0,0.30020214]
[1767290403669,0.0001346,88393.0,88390.0,0.30020214]
[1767290403861,0.0001346,88393.0,88390.0,0.31151563]
[1767290404065,0.0001346,88393.0,88390.0,0.01131349]
[1767290404427,6e-07,88393.0,88390.0,0.01131349]
[1767290406219,0.0002014,88400.0,88393.0,0.01131311]
[1767290406376,0.0002014,88400.0,88395.0,0.01131285]
[1767290406589,0.000282,88395.0,88393.0,0.01131311]
[1767290406738,0.000282,88395.0,88391.0,0.01131336]
[1767290406942,0.0002014,88400.0,88391.0,0.01131336]
[1767290407257,0.30789493,88399.0,88382.0,0.01131452]
[1767290407457,0.30789493,88399.0,88380.0,0.01131477]
[1767290407640,0.01131272,88396.0,88380.0,0.44038379]
[1767290407841,0.01131375,88388.0,88374.0,0.01136]
[1767290408086,0.05656635,88392.0,88368.0,0.30020214]
[1767290408087,0.30789493,88389.0,88370.0,0.44038379]
[1767290408262,0.30789493,88389.0,88372.0,0.06789423]
[1767290408718,0.30789493,88389.0,88373.0,0.01131567]
[1767290408934,0.30789493,88389.0,88371.0,0.05657964]
[1767290408935,0.30789493,88389.0,88371.0,0.01131592]
[1767290409142,0.30789493,88389.0,88372.0,0.0113158]
[1767290409350,0.30789493,88389.0,88373.0,0.01131567]
[1767290409638,0.30789493,88389.0,88375.0,0.01131541]
[1767290409837,0.30789493,88389.0,88373.0,0.01131567]
[1767290410042,0.30789493,88389.0,88375.0,0.01131541]
[1767290410255,0.30789493,88389.0,88379.0,0.44038379]
[1767290411231,0.01136,88395.0,88379.0,0.44038379]
[1767290411232,0.30789493,88394.0,88380.0,0.01131477]
[1767290411967,0.30789493,88394.0,88379.0,0.45169869]
[1767290412471,0.30789493,88394.0,88380.0,0.01131477]
[1767290412901,0.30789493,88394.0,88379.0,0.45169869]
[1767290413422,0.30789493,88394.0,88376.0,0.01131528]
[1767290413604,0.30789493,88394.0,88365.0,0.01131669]
[1767290413605,0.45169779,88386.0,88365.0,0.01131669]
[1767290413822,0.44038379,88380.0,88367.0,0.01131644]
[1767290414168,0.44038379,88380.0,88368.0,0.01131631]
[1767290414500,0.01136,88385.0,88370.0,0.01131605]
[1767290414701,0.01136,88385.0,88369.0,0.01131618]
[1767290414998,0.01136,88385.0,88370.0,0.01131605]
[1767290415241,0.01136,88385.0,88369.0,0.01131618]
[1767290415412,0.01136,88385.0,88370.0,0.01131605]
[1767290415644,0.30789493,88384.0,88369.0,0.01131618]
[1767290415853,0.30789493,88384.0,88370.0,0.01131605]
[1767290416382,0.30789493,88384.0,88371.0,0.01131592]
[1767290416640,0.30789493,88384.0,88369.0,0.06789647]
[1767290416641,0.30789493,88384.0,88369.0,0.01131618]
[1767290416913,0.30789493,88384.0,88368.0,0.01131631]
[1767290417088,0.30789493,88384.0,88376.0,0.01131528]
[1767290417224,0.307851,88384.0,88375.0,0.01131541]
[1767290417429,0.307302,88384.0,88378.0,0.01131503]
[1767290417648,0.307302,88384.0,88376.0,0.01131528]
[1767290418057,0.307302,88384.0,88371.0,0.05657942]
[1767290418272,0.307302,88384.0,88372.0,0.0113158]
[1767290418703,0.307302,88384.0,88373.0,0.01131567]
[1767290418850,0.307302,88384.0,88374.0,0.01131554]
[1767290419373,0.307302,88384.0,88375.0,0.01131541]
[1767290419905,0.01136,88385.0,88378.0,0.01131503]
[1767290420100,0.01136,88390.0,88385.0,0.00055]
[1767290420282,0.01136,88390.0,88382.0,0.05657253]
[1767290420283,0.01136,88390.0,88386.0,0.011314]
[1767290420458,0.44058519,88400.0,88386.0,0.011314]
[1767290420459,0.0002014,88400.0,88387.0,0.31151602]
[1767290420684,0.01136,88399.0,88391.0,0.01131336]
[1767290420884,0.01136,88399.0,88390.0,0.45169728]
[1767290421086,0.01136,88399.0,88390.0,0.44038379]
[1767290421269,0.01136,88399.0,88389.0,0.06788138]
[1767290421465,0.01136,88399.0,88391.0,0.01131336]
[1767290421926,0.000549,88391.0,88386.0,0.011314]
[1767290422120,0.000549,88391.0,88383.0,0.01131439]
[1767290422121,0.30844393,88391.0,88383.0,0.01136]
[1767290422326,0.30844393,88391.0,88383.0,0.02267439]
[1767290422572,0.30844393,88391.0,88382.0,0.01131452]
[1767290422573,0.30789493,88391.0,88382.0,0.01131452]
[1767290422911,0.30789493,88391.0,88382.0,0.01137041]
[1767290423128,0.30789493,88391.0,88383.0,0.01131439]
[1767290423773,0.30785253,88391.0,88384.0,0.01131426]
[1767290424069,0.30785253,88391.0,88385.0,0.01131413]
[1767290424244,0.30785253,88391.0,88384.0,0.01131426]
[1767290424871,0.30785253,88391.0,88382.0,5.589e-05]
[1767290425076,0.30785253,88391.0,88382.0,0.01137041]
[1767290425676,0.30785253,88391.0,88382.0,5.589e-05]
[1767290426109,0.30785253,88391.0,88382.0,0.01137041]
[1767290426488,0.30785253,88391.0,88382.0,5.589e-05]
[1767290426662,0.30067916,88398.0,88382.0,0.01137041]
[1767290426869,0.30067916,88398.0,88382.0,5.589e-05]
[1767290427663,0.30067916,88398.0,88382.0,0.01137041]
[1767290429297,0.30067916,88398.0,88382.0,5.589e-05]
[1767290430305,0.30067916,88398.0,88382.0,0.01137041]
[1767290430501,0.01131285,88395.0,88382.0,5.589e-05]
[1767290430701,5.5e-05,88382.0,88371.0,0.06789496]
[1767290430902,5.5e-05,88382.0,88375.0,0.01136]
[1767290431122,0.30067916,88387.0,88375.0,0.01136]
[1767290432326,0.30067916,88387.0,88371.0,5.188e-05]
[1767290432590,0.000549,88375.0,88371.0,5.188e-05]
[1767290432893,0.01136,88381.0,88374.0,0.05657737]
[1767290433011,0.01081,88381.0,88378.0,0.01131503]
[1767290433411,0.01081,88381.0,88378.0,0.0678901]
[1767290433964,0.01081,88381.0,88378.0,0.3594645]
[1767290434297,0.30067916,88399.0,88378.0,0.2915744]
[1767290434442,0.0002014,88400.0,88375.0,0.2263079]
[1767290434443,0.01136,88393.0,88390.0,0.2915744]
[1767290434645,0.01136,88399.0,88390.0,0.01131349]
[1767290434852,0.01136,88399.0,88389.0,0.50826519]
[1767290435028,0.01136,88399.0,88389.0,0.45169741]
[1767290435367,0.01136,88399.0,88389.0,0.44038379]
[1767290436060,0.01136,88399.0,88389.0,0.45169741]
[1767290436663,0.0002014,88400.0,88391.0,0.2915744]
[1767290436860,0.30067916,88399.0,88381.0,0.01131464]
[1767290437084,0.30067916,88399.0,88384.0,0.01131426]
[1767290437085,0.000549,88391.0,88384.0,0.01131426]
[1767290437431,0.30067916,88399.0,88383.0,0.01131439]